bitfinex-derivatives/quotes_ETHF0:USTF0_20250621
["timestamp","ask_amount","ask_price","bid_price","bid_amount"]
[1750523497033,1.49977,2426.8,2426.7,3.2078]
[1750523498043,0.82408,2426.5,2426.3,10.46093]
[1750523498351,0.82409,2426.5,2426.3,9.6368]
[1750523498639,0.7112,2426.4,2426.3,10.46094]
[1750523500140,2.11092,2426.7,2426.5,0.82406]
[1750523500439,0.7112,2426.6,2426.5,0.82406]
[1750523500638,1.53524,2426.6,2426.5,0.82406]
[1750523501131,0.82407,2426.5,2426.4,3.4092402]
[1750523501732,0.82407,2426.5,2426.4,2.5851602]
[1750523502139,0.8241,2426.4,2426.3,9.6368]
[1750523502341,0.82412,2426.4,2426.2,0.82417]
[1750523502536,0.82412,2426.4,2426.0,5.7929602]
[1750523502537,0.82408,2426.5,2426.3,0.82411]
[1750523502938,1.53525,2426.6,2426.4,0.8241]
[1750523503140,0.82407,2426.5,2426.4,0.8241]
[1750523503844,0.82408,2426.5,2426.3,7.3213702]
[1750523504142,0.82408,2426.5,2426.4,0.8241]
[1750523504341,0.82408,2426.5,2426.3,7.3213802]
[1750523504537,0.8241,2426.4,2426.3,3.2894602]
[1750523505045,0.82409,2426.5,2426.3,4.1136002]
[1750523505245,2.91166,2426.6,2426.4,0.8241]
[1750523506149,0.82407,2426.5,2426.4,0.8241]
[1750523506949,2.91166,2426.6,2426.4,0.8241]
[1750523507143,0.6758,2426.8,2426.7,0.824]
[1750523507345,3.2078,2426.9,2426.8,0.82397]
[1750523507846,3.2078,2426.9,2426.8,1.50637]
[1750523508046,4.03173,2426.9,2426.8,0.6824]
[1750523508238,3.2078,2426.9,2426.6,0.82402]
[1750523508434,0.82398,2426.8,2426.6,0.82402]
[1750523509752,0.82406,2426.6,2426.4,0.6851]
[1750523509952,0.82406,2426.6,2426.5,0.82407]
[1750523510551,1.48832,2426.7,2426.5,0.82407]
[1750523512457,0.82404,2426.6,2426.5,0.82407]
[1750523512955,0.82404,2426.6,2426.4,1.50918]
[1750523513156,0.6643,2426.7,2426.3,1.52962]
[1750523513356,0.82408,2426.5,2426.4,0.8241]
[1750523513556,0.82408,2426.5,2426.3,1.52961]
[1750523514458,0.82408,2426.5,2426.4,0.8241]
[1750523514658,2.88806,2426.6,2426.4,0.8241]
[1750523515458,0.82407,2426.5,2426.4,0.8241]
[1750523516659,2.88806,2426.6,2426.4,0.8241]
[1750523516858,2.88806,2426.6,2426.5,0.82407]
[1750523517156,0.6643,2426.7,2426.6,0.82404]
[1750523517366,3.2078,2426.9,2426.6,2.5851602]
[1750523517554,0.6533,2427.0,2426.6,2.5851602]
[1750523517753,0.82394,2426.9,2426.8,0.82395]
[1750523517950,0.6533,2427.0,2426.7,2.0581]
[1750523518254,1.47723,2427.0,2426.8,0.82395]
[1750523518454,0.82393,2426.9,2426.8,0.82395]
[1750523518655,0.82397,2426.8,2426.7,2.0581]
[1750523518962,0.82397,2426.8,2426.7,0.6941]
[1750523523152,3.8611,2427.0,2426.4,14.2151602]
[1750523523358,0.82403,2426.7,2426.5,0.6652]
[1750523523558,0.82403,2426.7,2426.5,1.48927]
[1750523523758,0.82404,2426.6,2426.5,0.6652]
[1750523524069,1.51224,2426.6,2426.5,0.6652]
[1750523524363,1.51224,2426.6,2426.5,1.48927]
[1750523524662,0.6882,2426.6,2426.5,1.48927]
[1750523524868,0.82403,2426.7,2426.5,1.48927]
[1750523526969,0.82404,2426.6,2426.5,0.6652]
[1750523527269,0.82403,2426.7,2426.5,1.48927]
[1750523527564,0.82403,2426.7,2426.6,0.82404]
[1750523527968,0.82403,2426.7,2426.5,1.48925]
[1750523529069,0.82404,2426.6,2426.5,0.6652]
[1750523530160,0.82403,2426.7,2426.5,0.6652]
[1750523530361,0.82403,2426.7,2426.5,1.48925]
[1750523531469,0.6882,2426.8,2426.6,0.82404]
[1750523531470,1.5122,2426.8,2426.6,0.82404]
[1750523531771,0.824,2426.7,2426.6,0.82404]
[1750523532070,0.824,2426.7,2426.5,0.6652]
[1750523532657,0.824,2426.7,2426.6,0.82404]
[1750523533069,0.824,2426.7,2426.5,1.48925]
[1750523534273,0.824,2426.7,2426.6,0.82404]
[1750523535070,0.824,2426.7,2426.5,1.48924]
[1750523536373,0.6882,2426.8,2426.7,0.824]
[1750523536574,1.08909073,2426.8,2426.5,3.2503602]
[1750523536777,0.82402,2426.7,2426.5,2.90655]
[1750523537168,0.82402,2426.7,2426.6,0.82404]
[1750523537668,0.824,2426.7,2426.6,0.82401]
[1750523538069,0.824,2426.7,2426.5,2.90655]
[1750523538675,0.824,2426.7,2426.6,0.82404]
[1750523539171,1.52209,2426.8,2426.6,0.82404]
[1750523540280,0.824,2426.7,2426.6,0.82404]
[1750523540677,1.52209,2426.8,2426.6,0.82404]
[1750523541378,0.824,2426.7,2426.6,0.82404]
[1750523542282,1.52209,2426.8,2426.7,0.824]
[1750523542480,1.78702209,2426.8,2426.7,0.824]
[1750523542672,1.78702209,2426.8,2426.5,2.0825]
[1750523542874,0.824,2426.7,2426.5,1.48926]
[1750523543075,0.82404,2426.6,2426.5,1.48926]
[1750523543874,7.8529902,2426.7,2426.2,3.2707695]
[1750523544083,0.82414,2426.3,2426.2,0.6742]
[1750523544274,0.82422,2426.1,2425.9,0.82426]
[1750523544574,1.52454,2426.0,2425.8,4.03208]
[1750523544778,1.52456,2426.0,2425.8,3.2078]
[1750523544970,0.82431,2425.8,2425.6,1.48216]
[1750523545171,0.82436,2425.7,2425.5,1.49859]
[1750523546376,0.82432,2425.8,2425.6,0.82438]
[1750523546675,2.2254,2425.9,2425.6,0.82438]
[1750523547878,0.82438,2425.6,2425.4,10.46822]
[1750523548181,0.82438,2425.6,2425.4,10.46824]
[1750523548566,0.82441,2425.5,2425.4,3.2078]
[1750523548768,0.6858,2425.5,2425.4,4.03223]
[1750523549072,0.6925,2425.7,2425.4,5.7929602]
[1750523549377,0.6925,2425.7,2425.5,0.8244]
[1750523550274,0.6858,2425.8,2425.6,0.82438]
[1750523550478,0.6858,2425.8,2425.7,0.82434]
[1750523550678,11.11794,2426.0,2425.8,0.82431]
[1750523550880,3.2078,2426.0,2425.9,0.82427]
[1750523551079,7.26122,2426.1,2425.8,3.4094502]
[1750523551280,6.437,2426.1,2425.8,2.5851602]
[1750523551577,6.437,2426.1,2426.0,0.82424]
[1750523551769,6.437,2426.1,2425.8,2.5851602]
[1750523552169,6.437,2426.1,2426.0,0.82424]
[1750523553084,6.437,2426.1,2425.8,2.5851602]
[1750523553469,7.26123,2426.1,2425.8,3.4094402]
[1750523553675,7.26123,2426.1,2425.8,0.82428]
[1750523554481,0.82424,2426.0,2425.8,0.82428]
[1750523554678,0.82428,2425.9,2425.7,0.82433]
[1750523555072,0.82426,2426.0,2425.8,0.82431]
[1750523555274,2.18536,2426.0,2425.6,1.3608]
[1750523555474,2.18536,2426.0,2425.7,0.82432]
[1750523555983,1.3611,2426.0,2425.6,3.9459602]
[1750523556187,0.82422,2426.1,2425.6,5.2757602]
[1750523556479,0.82422,2426.1,2425.8,0.82428]
[1750523556682,0.82424,2426.0,2425.8,0.82428]
[1750523556878,8.4891,2426.2,2425.7,0.82432]
[1750523557070,0.82429,2425.9,2425.7,0.82432]
[1750523557276,0.82431,2425.8,2425.6,0.82435]
[1750523557571,5.41063,2425.8,2425.6,0.82437]
[1750523558079,6.77123,2425.8,2425.6,0.82437]
[1750523558277,5.9469,2425.8,2425.4,3.2078]
[1750523558577,6.77122,2425.8,2425.6,0.82438]
[1750523558777,5.9469,2425.8,2425.6,0.82438]
[1750523559484,6.77121,2425.8,2425.6,0.82438]
[1750523559886,0.82435,2425.7,2425.5,0.82439]
[1750523560279,1.3785,2425.8,2425.7,0.82434]
[1750523560481,0.6887,2425.8,2425.7,0.82434]
[1750523561383,1.51301,2425.8,2425.7,0.82434]
[1750523561992,0.82436,2425.7,2425.5,0.82439]
[1750523562197,0.6887,2425.8,2425.6,0.82438]
[1750523562489,2.85703,2425.8,2425.6,0.82438]
[1750523563784,2.0327,2425.8,2425.4,3.2078]
[1750523563999,0.82439,2425.6,2425.4,4.03222]
[1750523564195,5.2405,2425.8,2425.4,3.2078]
[1750523564400,3.8913602,2425.7,2425.3,0.82446]
[1750523564600,1.3062,2425.6,2425.5,0.82441]
[1750523564802,2.13058,2425.6,2425.5,0.82441]
[1750523565101,1.3062,2425.6,2425.5,0.82441]
[1750523565404,3.8965,2425.8,2425.3,2.5851602]
[1750523565604,31.483,2425.7,2425.6,0.82438]
[1750523565804,32.30734,2425.7,2425.6,0.82438]
[1750523565995,0.82438,2425.6,2425.5,0.8244]
[1750523566198,0.82442,2425.5,2425.1,3.8537]
[1750523566397,0.82442,2425.5,2425.3,0.82445]
[1750523566602,2.1199,2425.6,2425.3,0.82445]
[1750523566902,0.6509,2425.4,2425.3,0.82445]
[1750523567907,0.6509,2425.4,2425.2,0.82449]
[1750523568098,3.44636,2425.4,2425.2,0.82449]
[1750523568407,3.44636,2425.4,2425.3,0.82448]
[1750523568698,2.6219,2425.4,2425.3,0.82448]
[1750523568902,3.44634,2425.4,2425.3,0.82448]
[1750523569204,3.44634,2425.4,2425.2,0.82449]
[1750523569697,3.44637,2425.4,2425.2,0.82449]
[1750523570197,0.82448,2425.3,2425.2,0.82449]
[1750523570600,0.82451,2425.3,2425.1,4.03233]
[1750523570797,0.82451,2425.2,2425.1,3.2078]
[1750523570997,1.4141,2425.3,2424.8,3.8582]
[1750523570998,0.82455,2425.1,2424.8,3.8582]
[1750523571199,0.82461,2424.9,2424.8,3.8582]
[1750523571397,0.82461,2424.9,2424.2,3.2078]
[1750523571398,0.82469,2424.7,2424.2,3.2078]
[1750523571603,5.3208,2424.8,2424.2,3.2078]
[1750523571905,0.82469,2424.7,2424.4,0.82476]
[1750523572099,1.2834,2424.7,2424.5,0.82473]
[1750523572300,1.2834,2424.7,2424.3,0.82478]
[1750523572301,7.26474,2424.6,2424.3,0.82478]
[1750523572502,25.112,2424.5,2424.3,0.82478]
[1750523572704,25.112,2424.5,2424.4,0.82478]
[1750523573805,25.112,2424.5,2424.2,3.2078]
[1750523574108,25.112,2424.5,2424.1,2.13286]
[1750523574109,0.82482,2424.3,2424.1,2.13286]
[1750523574511,0.82485,2424.2,2424.0,0.82489]
[1750523575309,0.82484,2424.3,2424.1,0.82488]
[1750523575812,0.82481,2424.4,2424.1,0.82488]
[1750523576004,0.82482,2424.3,2424.1,0.82488]
[1750523576203,1.339,2424.4,2424.0,0.8249]
[1750523576514,0.8249,2424.1,2423.8,4.1072202]
[1750523576699,0.8249,2424.1,2423.8,1.52206]
[1750523576904,0.82493,2424.0,2423.8,1.52206]
[1750523577205,1.46882,2424.0,2423.8,1.52208]
[1750523577408,12.2349602,2423.9,2423.3,3.2078]
[1750523577597,2.5851602,2423.7,2423.3,4.03295]
[1750523577798,2.5851602,2423.5,2423.0,0.6453]
[1750523578008,26.485,2423.4,2423.0,0.6453]
[1750523578202,0.82517,2423.3,2423.0,1.47054]
[1750523578512,7.26717,2423.3,2423.0,0.82524]
[1750523578805,0.82524,2423.1,2422.9,0.7085]
[1750523579003,0.82524,2423.1,2422.9,0.82529]
[1750523579203,6.443,2423.0,2422.8,0.82532]
[1750523579407,25.9753,2422.9,2422.6,4.03318]
[1750523579698,25.9753,2422.9,2422.6,3.2078]
[1750523579906,25.15,2422.9,2422.8,0.82533]
[1750523580198,25.15,2422.9,2422.6,3.2078]
[1750523580603,26.5456,2422.9,2422.6,3.2078]
[1750523580805,25.271,2423.1,2423.0,0.82526]
[1750523581111,26.09623,2423.1,2422.7,1.49684]
[1750523581413,3.2078,2423.3,2422.7,0.6715]
[1750523581714,31.754,2423.2,2423.0,0.82526]
[1750523581904,25.311,2423.1,2422.8,1.9953]
[1750523582099,25.311,2423.1,2423.0,0.82526]
[1750523582310,25.32,2423.1,2422.8,1.9953]
[1750523582506,25.32,2423.1,2422.9,0.82529]
[1750523583206,25.32,2423.1,2423.0,0.82526]
[1750523583609,25.32,2423.1,2422.9,0.82528]
[1750523584210,6.585,2423.0,2422.7,0.82535]
[1750523584417,0.82531,2422.9,2422.6,0.82536]
[1750523584621,0.82531,2422.9,2422.7,0.82536]
[1750523584914,1.51461,2422.9,2422.7,0.82536]
[1750523585507,0.6893,2422.9,2422.8,0.82533]
[1750523586114,0.6893,2422.9,2422.6,0.82536]
[1750523586414,25.328,2422.8,2422.6,0.82536]
[1750523586716,0.82538,2422.7,2422.5,0.82541]
[1750523587017,26.7196,2422.8,2422.4,0.6797]
[1750523587313,26.7196,2422.8,2422.3,3.2078]
[1750523587501,0.8254,2422.6,2422.4,0.82544]
[1750523587710,31.918,2422.5,2422.4,0.82544]
[1750523587907,1.3916,2422.8,2422.3,3.2078]
[1750523587908,0.82539,2422.7,2422.5,0.82542]
[1750523588110,25.333,2422.6,2422.5,0.82542]
[1750523588619,0.6893,2422.9,2422.8,0.82533]
[1750523588821,32.6103,2422.9,2422.4,8.68640858]
[1750523589021,33.43559,2422.9,2422.7,0.82533]
[1750523589418,0.82537,2422.7,2422.6,0.8254]
[1750523589814,0.82535,2422.8,2422.6,0.82537]
[1750523590016,2.17165,2422.8,2422.6,0.82537]
[1750523590216,0.82536,2422.7,2422.5,0.82541]
[1750523590417,2.17165,2422.8,2422.6,0.8254]
[1750523590920,2.17165,2422.8,2422.7,0.82536]
[1750523591315,2.17165,2422.8,2422.6,0.82537]
[1750523591910,0.82536,2422.7,2422.5,0.82541]
[1750523592316,3.2078,2422.7,2422.2,1.3616]
[1750523592517,0.82545,2422.5,2422.3,0.82549]
[1750523592718,0.82545,2422.5,2422.0,3.2078]
[1750523592719,1.3352,2422.6,2422.5,0.82543]
[1750523592923,31.924,2422.6,2422.5,0.82543]
[1750523593222,0.6893,2422.9,2422.8,0.82533]
[1750523593419,32.6193,2422.9,2422.8,0.82533]
[1750523593620,33.44459,2422.9,2422.7,0.82534]
[1750523593828,32.6193,2422.9,2422.8,0.82533]
[1750523594712,0.6893,2422.9,2422.8,0.82533]
[1750523594918,1.51461,2422.9,2422.6,0.82538]
[1750523595117,33.45761,2422.9,2422.6,0.82538]
[1750523595322,0.82533,2422.8,2422.6,0.82538]
[1750523595527,0.82533,2422.8,2422.4,0.82544]
[1750523595528,0.8254,2422.6,2422.4,0.82544]
[1750523595824,26.17839,2422.7,2422.5,0.82543]
[1750523596125,0.6893,2422.9,2422.7,0.82534]
[1750523596322,32.77033,2422.8,2422.6,0.82537]
[1750523596927,32.77033,2422.8,2422.7,0.82536]
[1750523597424,7.2763,2422.9,2422.8,0.82533]
[1750523597620,32.6323,2422.9,2422.8,0.82533]
[1750523598320,33.4576,2422.9,2422.7,0.82535]
[1750523598826,32.6323,2422.9,2422.6,1.51117]
[1750523599027,32.6323,2422.9,2422.7,0.82536]
[1750523599219,33.45761,2422.9,2422.7,0.82536]
[1750523599423,0.82533,2422.8,2422.6,1.51117]
[1750523599730,0.82533,2422.8,2422.7,0.06847599]
[1750523600722,0.82543,2422.6,2422.4,0.82546]
[1750523600927,25.352,2422.5,2422.4,0.82546]
[1750523601227,26.17743,2422.5,2422.4,0.82546]
[1750523601428,0.82546,2422.4,2422.3,1.50499]
[1750523601626,26.17745,2422.5,2422.4,0.82546]
[1750523602428,0.82546,2422.4,2422.3,1.50498]
[1750523602817,3.2078,2422.7,2422.3,1.50498]
[1750523603022,26.16642,2422.6,2422.5,0.82542]
[1750523605025,0.82542,2422.6,2422.5,0.82542]
[1750523605225,26.15742,2422.6,2422.5,0.82542]
[1750523606335,0.6893,2422.9,2422.5,2.58850796]
[1750523606528,25.331,2422.7,2422.6,1.51938]
[1750523606721,26.40580816,2422.7,2422.6,1.51938]
[1750523606920,27.23120816,2422.7,2422.6,1.51938]
[1750523607332,27.23120816,2422.7,2422.6,0.694]
[1750523608226,2.0635,2422.6,2421.6,3.2707695]
[1750523608427,3.2078,2422.1,2421.5,2.58850796]
[1750523608627,25.412,2422.0,2421.8,0.82566]
[1750523608828,28.6198,2422.1,2421.9,0.82563]
[1750523609028,25.412,2422.1,2422.0,0.8256]
[1750523609228,3.2078,2422.4,2421.9,5.79630796]
[1750523609434,1.07286994,2422.3,2422.2,0.82553]
[1750523609638,1.07286994,2422.3,2422.2,7.41353]
[1750523609937,25.423,2422.4,2422.3,0.8255]
[1750523610137,26.49581944,2422.4,2422.3,0.8255]
[1750523610435,0.6562,2422.7,2422.3,7.58850796]
[1750523610631,4.03313,2422.8,2422.5,3.41390796]
[1750523610941,1.0726327,2422.7,2422.5,7.4134]
[1750523611132,0.82537,2422.7,2422.5,7.4134]
[1750523611740,4.03313,2422.8,2422.5,7.41341]
[1750523612040,1.0726955,2422.7,2422.5,7.41341]
[1750523612240,4.03313,2422.8,2422.5,7.41341]
[1750523612439,1.07287787,2422.7,2422.6,0.8254]
[1750523612737,5.37484,2423.1,2422.5,9.7958]
[1750523612936,1.07364677,2423.0,2422.7,0.06847599]
[1750523613137,1.07364677,2422.9,2422.8,8.5168]
[1750523613737,3.89,2423.1,2422.9,0.82529]
[1750523613938,1.07364321,2423.0,2422.9,0.82529]
[1750523614138,1.07364321,2423.0,2422.8,10.03152]
[1750523614438,4.71523,2423.1,2422.8,10.03152]
[1750523614636,1.07368684,2423.0,2422.8,10.03152]
[1750523614835,4.71523,2423.1,2422.9,0.82529]
[1750523615039,1.07367536,2423.0,2422.9,0.82529]
[1750523615231,1.07367536,2423.0,2422.9,2.12479]
[1750523615837,1.07367536,2423.0,2422.8,2.16051]
[1750523616041,4.03305,2423.1,2422.8,8.79951]
[1750523616339,1.89875786,2423.0,2422.8,8.79951]
[1750523616640,0.82528,2423.0,2422.8,6.639]
[1750523616829,2.75818,2423.0,2422.8,6.639]
[1750523618739,2.75818,2423.0,2422.8,7.46433]
[1750523618941,0.82531,2422.9,2422.7,0.82534]
[1750523619239,2.75818,2423.0,2422.7,0.82534]
[1750523619636,0.8253,2422.9,2422.7,0.82534]
[1750523619841,0.82533,2422.8,2422.6,6.638]
[1750523620044,2.91522,2422.9,2422.6,7.46338]
[1750523620240,2.91522,2422.9,2422.6,6.638]
[1750523620544,2.91522,2422.9,2422.7,0.82536]
[1750523621241,2.0899,2422.9,2422.6,6.638]
[1750523621446,1.51961,2422.9,2422.7,0.82533]
[1750523621948,0.6943,2422.9,2422.8,0.82533]
[1750523623339,1.47008,2423.0,2422.8,0.82533]
[1750523623540,0.82529,2422.9,2422.8,0.82533]
[1750523623739,4.03305,2423.1,2422.9,0.82529]
[1750523623940,0.82529,2422.9,2422.8,0.8253]
[1750523624136,0.82528,2423.0,2422.8,0.8253]
[1750523624336,0.82528,2423.0,2422.7,1.3901]
[1750523624337,0.82528,2423.0,2422.9,0.82529]
[1750523624638,0.82529,2422.9,2422.8,0.82531]
[1750523624849,0.82529,2422.9,2422.8,0.82533]
[1750523625348,0.82529,2422.9,2422.6,6.638]
[1750523625533,0.82527,2423.0,2422.8,0.82529]
[1750523625737,2.14147,2423.0,2422.8,0.82529]
[1750523626351,1.3162,2423.0,2422.8,0.82529]
[1750523626545,2.14149,2423.0,2422.8,0.82529]
[1750523626745,2.14149,2423.0,2422.9,0.82529]
[1750523626943,1.3162,2423.0,2422.9,0.82529]
[1750523627142,4.03305,2423.1,2422.9,0.82529]
[1750523627651,0.82526,2423.0,2422.9,0.82529]
[1750523627949,0.82526,2423.0,2422.8,0.8253]
[1750523628148,0.82529,2422.9,2422.8,0.8253]
[1750523628348,0.82529,2422.9,2422.7,7.46334]
[1750523628537,0.82529,2422.9,2422.8,0.82533]
[1750523628946,0.82529,2422.9,2422.7,7.46334]
[1750523629335,0.82533,2422.8,2422.7,7.46334]
[1750523629746,0.82532,2422.9,2422.7,7.46334]
[1750523630049,1.2898,2422.8,2422.7,7.46334]
[1750523630749,0.06847599,2423.0,2422.9,0.82529]
[1750523631145,1.35827599,2423.0,2422.9,0.82529]
[1750523633356,0.06847599,2423.0,2422.9,0.82529]
[1750523636948,0.06847599,2423.0,2422.9,3.41287602]
[1750523637347,0.06847599,2423.0,2422.9,0.82529]
[1750523642363,0.89373599,2423.0,2422.9,0.82529]
[1750523642663,0.06847599,2423.0,2422.9,7.46329]
[1750523643576,2.24483599,2423.0,2422.9,7.46329]
[1750523644067,1.41957599,2423.0,2422.9,7.46329]
[1750523644278,4.00716201,2423.0,2422.6,3.2707695]
[1750523644461,0.82529,2422.9,2422.7,0.82535]
[1750523644663,0.82533,2422.8,2422.6,7.46338]
[1750523644864,2.16403,2422.8,2422.6,7.46338]
[1750523645066,3.51513,2422.8,2422.6,7.46338]
[1750523645568,2.14176,2422.7,2422.6,0.82538]
[1750523645776,1.3164,2422.7,2422.4,3.2707695]
[1750523645959,3.90398602,2422.6,2422.2,13.8860895]
[1750523646165,1.3164,2422.5,2422.2,9.7898]
[1750523646365,1.3164,2422.5,2422.4,0.82546]
[1750523647673,1.3164,2422.5,2422.0,5.3347495]
[1750523647975,2.14183,2422.5,2422.1,6.582]
[1750523648176,0.82547,2422.4,2422.2,0.82553]
[1750523648380,2.18047,2422.4,2422.3,0.8255]
[1750523648568,1.355,2422.4,2422.3,0.8255]
[1750523649377,2.18048,2422.4,2422.2,0.82552]
[1750523649576,0.82553,2422.3,2422.1,0.82555]
[1750523649768,2.058,2422.3,2421.9,9.8527695]
[1750523649969,2.88351,2422.3,2422.1,0.82555]
[1750523650171,2.18054,2422.2,2422.0,0.82558]
[1750523650374,1.355,2422.1,2422.0,0.82558]
[1750523650781,0.703,2422.3,2422.2,0.82553]
[1750523651176,1.5285,2422.3,2422.2,0.82553]
[1750523651372,2.9248,2422.3,2422.2,0.82553]
[1750523651573,2.0993,2422.3,2422.2,0.82553]
[1750523651882,3.2078,2422.6,2422.5,0.82543]
[1750523652074,4.03321,2422.6,2422.4,0.82545]
[1750523652274,5.42951,2422.6,2422.4,0.82545]
[1750523652477,1.3963,2422.5,2422.4,0.82545]
[1750523653477,1.3963,2422.5,2422.0,3.94828602]
[1750523653681,0.82549,2422.4,2422.2,0.82552]
[1750523653882,1.3963,2422.3,2422.2,0.82552]
[1750523654674,4.6041,2422.3,2422.1,6.582]
[1750523654874,0.82553,2422.2,2422.1,7.40756]
[1750523655077,0.82553,2422.2,2422.0,0.82558]
[1750523655272,0.82557,2422.1,2421.6,54.0285695]
[1750523655477,0.82557,2422.1,2421.7,6.583]
[1750523655478,1.3602,2422.0,2421.7,6.583]
[1750523655680,1.3602,2422.0,2421.9,0.82563]
[1750523656084,2.18582,2422.0,2421.8,0.82565]
[1750523656382,2.18582,2422.0,2421.8,0.82566]
[1750523656578,0.82563,2421.9,2421.7,6.583]
[1750523656973,0.82563,2421.9,2421.7,7.40869]
[1750523657175,0.82563,2421.9,2421.7,6.583]
[1750523657378,2.18582,2422.0,2421.7,6.583]
[1750523657581,2.18582,2422.0,2421.8,0.82567]
[1750523657779,2.18582,2422.0,2421.7,6.583]
[1750523657974,2.18582,2422.0,2421.7,0.82568]
[1750523657975,0.82563,2421.9,2421.7,0.82568]
[1750523658175,2.14983,2421.9,2421.7,0.82568]
[1750523658677,1.3242,2421.9,2421.8,0.82567]
[1750523658877,0.82562,2422.0,2421.8,0.82567]
[1750523661088,0.82563,2421.9,2421.8,0.82567]
[1750523661284,0.82563,2421.9,2421.7,0.82568]
[1750523661687,0.82567,2421.8,2421.6,10.61651]
[1750523661987,0.82567,2421.8,2421.7,0.8257]
[1750523662187,0.82567,2421.8,2421.6,10.6165]
[1750523662487,0.82566,2421.9,2421.7,0.82569]
[1750523662685,0.82568,2421.8,2421.6,10.61652]
[1750523662985,0.82564,2421.9,2421.7,0.8257]
[1750523663488,0.82567,2421.8,2421.7,0.8257]
[1750523663686,0.82573,2421.7,2421.5,0.82576]
[1750523663889,0.82576,2421.6,2421.4,0.8258]
[1750523664191,4.71722,2421.7,2421.5,0.82577]
[1750523664485,1.50942,2421.7,2421.5,0.82577]
[1750523664687,0.82575,2421.6,2421.4,0.82578]
[1750523665283,0.82577,2421.5,2421.4,0.82578]
[1750523665686,2.06464,2421.3,2420.6,0.82607]
[1750523665886,2.58758602,2421.0,2420.3,9.7918]
[1750523666085,1.3238,2420.9,2420.6,0.82606]
[1750523666282,0.82601,2420.8,2420.5,0.82609]
[1750523666883,0.82601,2420.8,2420.6,0.82606]
[1750523667091,0.82602,2420.8,2420.5,0.82609]
[1750523667291,0.82602,2420.8,2420.6,0.82607]
[1750523667493,0.82602,2420.8,2420.5,6.584]
[1750523667494,0.82606,2420.7,2420.5,0.8261]
[1750523667690,1.9935,2420.6,2420.0,9.7918]
[1750523667986,0.82616,2420.4,2420.2,0.82621]
[1750523668187,0.82624,2420.2,2420.0,6.584]
[1750523668392,0.82625,2420.1,2420.0,6.584]
[1750523668985,1.3381,2420.4,2420.0,6.584]
[1750523669191,0.82626,2420.1,2419.7,10.61916]
[1750523669391,0.82626,2420.1,2419.8,0.82635]
[1750523670292,0.82626,2420.1,2419.8,0.82633]
[1750523670495,6.585,2420.3,2420.1,0.82624]
[1750523670795,1.3754,2420.2,2420.0,0.82627]
[1750523670996,2.20162,2420.2,2419.9,0.8263]
[1750523671393,0.82626,2420.1,2419.7,3.2078]
[1750523671588,2.20166,2420.1,2419.8,0.82635]
[1750523671783,1.3754,2420.1,2419.9,0.82632]
[1750523671989,1.3754,2420.1,2420.0,0.82628]
[1750523672188,1.3754,2420.1,2419.9,0.8263]
[1750523672384,1.3754,2420.1,2420.0,0.82628]
[1750523672990,1.3754,2420.1,2419.9,0.8263]
[1750523673190,1.3754,2420.1,2419.7,3.2078]
[1750523673796,0.82631,2420.0,2419.7,4.03417]
[1750523673991,1.3186,2419.9,2419.8,0.82635]
[1750523674298,1.405,2420.0,2419.9,0.82632]
[1750523674998,6.587,2420.3,2419.7,5.2737]
[1750523675198,6.587,2420.3,2420.1,0.82622]
[1750523675398,7.9056,2420.3,2420.2,0.82621]
[1750523675595,7.9056,2420.3,2420.1,0.82623]
[1750523675792,7.9056,2420.3,2420.2,0.82621]
[1750523675992,1.3186,2420.3,2420.2,0.82621]
[1750523676699,2.14479,2420.3,2420.1,0.82623]
[1750523676896,1.3186,2420.3,2419.8,0.82633]
[1750523677102,0.82627,2420.1,2419.9,0.82631]
[1750523677399,0.82628,2420.1,2419.8,0.82633]
[1750523677696,1.4114,2420.0,2419.7,3.2078]
[1750523677902,3.2078,2419.9,2419.6,0.6439]
[1750523678199,4.03413,2419.9,2419.7,0.82639]
[1750523678499,1.4114,2419.8,2419.7,0.82639]
[1750523678795,3.8705,2419.9,2419.8,0.82635]
[1750523679001,0.82623,2420.2,2420.0,0.82628]
[1750523679202,2.0389,2420.3,2420.2,0.8262]
[1750523679504,3.9154,2420.4,2420.3,0.82618]
[1750523680000,3.2078,2420.4,2420.3,0.82618]
[1750523680901,3.2078,2420.4,2419.9,4.602]
[1750523681198,2.20239,2420.3,2420.1,0.82622]
[1750523681398,2.90119,2420.3,2420.1,0.82622]
[1750523681699,2.075,2420.3,2420.2,0.82621]
[1750523682101,0.6988,2420.3,2420.2,0.82621]
[1750523683205,2.0571,2420.3,2420.2,0.82621]
[1750523683704,0.82623,2420.2,2420.0,0.82626]
[1750523683902,0.82629,2420.0,2419.8,0.82633]
[1750523684102,1.3583,2419.9,2419.8,0.82633]
[1750523684498,1.3583,2419.9,2419.7,0.82636]
[1750523684693,3.2078,2419.8,2419.5,6.636]
[1750523684900,3.2078,2419.8,2419.6,0.82639]
[1750523685205,3.2078,2419.8,2419.5,6.636]
[1750523685206,4.5707,2419.8,2419.7,0.82639]
[1750523686307,3.2078,2419.8,2419.7,0.82639]
[1750523687509,0.82629,2420.0,2419.8,0.82633]
[1750523687701,0.82632,2419.9,2419.8,0.82633]
[1750523687902,2.1892,2420.0,2419.8,0.82633]
[1750523688503,1.3629,2420.0,2419.4,3.4557]
[1750523688710,0.82632,2419.9,2419.8,0.82635]